Cogmind - Beta 13 @@@ ROGUE MODE // 2024.05.22 @ 06:07:39 Player: A Moose Result: Destroyed by Y-45 Defender with Heavy Assault Rifle Performance ------------- Evolutions (2) 1000 Regions Visited (5) 1000 Robots Destroyed (85) 425 Value Destroyed (3360) 3360 Prototype IDs (5) 100 Alien Tech Used (0) 0 Bonus (811) 811 TOTAL SCORE: 6696 Bonus ------- High Alert Combat Kills 611 Entered Garrisons 200 Cogmind --------- Core Integrity 0/550 Matter 57/350 Energy 265/265 System Corruption 3% Temperature Cool (9) Movement Treading (240) Ox1 Location -8/Garrison Parts ------- > --- POWER (1) -------- Improved Ion Engine > --- PROPULSION (2) --- Light Treads Light Treads > --- UTILITY (5) ------ Improved Heat Sink Improved Heat Sink High-capacity Storage Unit Small Matter Pod > --- WEAPON (3) ------- Assault Cannon Flak Cannon Makeshift Sword > --- INVENTORY (20) --- Light Nuclear Core Light Nuclear Core Light Treads Advanced Treads Wheel Wheel Compact Wheel Advanced Heat Sink Experimental Sensor Array Heavy EM Shotgun Heavy Assault Rifle Remote Datajack Flamer Tiamat Bomb Trap Tiamat Bomb Trap Tiamat Bomb Trap Peak State ------------ > --- POWER ------------ Improved Ion Engine > --- PROPULSION ------- Wheel Subdweller Monowheel > --- UTILITY ---------- Improved Heat Sink Cooling System High-capacity Storage Unit Small Matter Pod Light Armor Plating > --- WEAPON ----------- Advanced Beam Cannon Heavy Assault Cannon > --- INVENTORY -------- Improved Ion Engine Light Nuclear Core Light Nuclear Core Light Treads Light Treads Advanced Treads Wheel Wheel Compact Wheel Advanced Heat Sink Experimental Sensor Array EM Pulse Gun Heavy EM Shotgun Pulse Rifle Assault Cannon Flak Cannon Grenade Launcher Flamer Makeshift Sword [Rating: 27] Favorites ----------- Power Improved Ion Engine Engine Improved Ion Engine Power Core Light Nuclear Core Propulsion Compact Wheel Treads Light Treads Wheel Compact Wheel Utility High-capacity Storage Unit Device Improved Heat Sink Storage High-capacity Storage Unit Protection Light Armor Plating Weapon Advanced Beam Cannon Energy Gun Pulse Rifle Energy Cannon Advanced Beam Cannon Ballistic Gun Assault Rifle Ballistic Cannon Improved Light Cannon Launcher Grenade Launcher Slashing Weapon Makeshift Sword Build | -11 -10 -10 -10 -8 -8 ------- Run | Yrd Mat Min Sub Mat Gar Slots Evolved 4 | . . . . 4 . Power . | . . . . . . Propulsion . | . . . . . . Utility 3 | . . . . 3 . Weapon 1 | . . . . 1 . Parts Attached 66 | 6 12 7 8 24 9 Power 7 | 1 1 . 2 2 1 Engine 5 | 1 . . 2 1 1 Core 2 | . 1 . . 1 . Reactor . | . . . . . . Propulsion 19 | 2 5 3 2 3 4 Treads 7 | 2 . 1 1 . 3 Leg . | . . . . . . Wheel 12 | . 5 2 1 3 1 Hover . | . . . . . . Flight . | . . . . . . Utility 16 | 1 2 3 2 7 1 Device 5 | . . 1 . 3 1 Storage 3 | 1 1 . . 1 . Processor . | . . . . . . Hackware . | . . . . . . Protection 8 | . 1 2 2 3 . Artifact . | . . . . . . Weapon 24 | 2 4 1 2 12 3 Energy Gun 3 | 1 . . . 2 . Energy Cannon 7 | . 3 . 1 3 . Ballistic Gun 3 | 1 1 . . 1 . Ballistic Cannon 9 | . . 1 1 6 1 Launcher 1 | . . . . . 1 Special Weapon . | . . . . . . Impact Weapon . | . . . . . . Slashing Weapon 1 | . . . . . 1 Piercing Weapon . | . . . . . . Special Melee Weapon . | . . . . . . Unidentified Prototypes 3 | . 1 1 . 1 . Parts Lost 34 | . 2 3 5 16 8 Power 5 | . 1 . 1 2 1 Propulsion 9 | . 1 2 1 3 2 Utility 8 | . . . 2 4 2 Weapon 12 | . . 1 1 7 3 Highest Loss Streak 5 | . 1 2 2 5 2 To Critical Strikes . | . . . . . . Average Slot Usage (%) 89 | . 95 99 88 79 87 Engine 5 | . 10 . 4 7 6 Core 3 | . . 14 . . 2 Treads 4 | . 8 . 5 . 5 Wheel 18 | . 18 27 19 15 11 Device 5 | . . . . 12 14 Storage 14 | . 14 14 14 10 18 Protection 9 | . 12 13 13 9 1 Energy Gun 2 | . 1 . . . 8 Energy Cannon 8 | . 11 14 14 4 . Ballistic Gun 2 | . 14 2 . 1 . Ballistic Cannon 10 | . . 11 14 15 9 Launcher 1 | . . . . . 7 Naked Turns . | . . . . . . Heaviest Build 70 | 14 52 56 56 70 64 Greatest Support 40 | 40 40 32 36 40 40 Greatest Overweight (x) 16 | . 4 2 3 16 5 Average Overweight (x) 1 | . 1 1 2 1 1 Largest Inventory Capacity 20 | 8 20 20 20 20 20 Average Capacity 19 | 7 19 20 20 20 20 Most Carried 20 | 7 16 20 20 20 18 Average Carried 16 | 4 11 19 19 16 16 Final Capacity 20 | 8 20 20 20 20 20 Final Carried 20 | 4 15 20 19 15 16 Class Distribution -------------------- 61% | Mutant 17% | Scavenger-Gunner 7% | Scavenger-Tank 6% | Tank 4% | Scavenger-Mutant Dominant Class ---------------- Mutant | -10/Materials Mutant | -10/Mines Mutant | -10/Subcaves Scavenger-Tank | -8/Materials Scavenger-Gunner | -8/Garrison Resources | -11 -10 -10 -10 -8 -8 ----------- Run | Yrd Mat Min Sub Mat Gar Matter Collected 1877 | 244 188 197 261 777 210 Remotely . | . . . . . . Salvage Created 2307 | . 521 214 354 731 487 Parts 147 | . 37 12 21 42 35 Haulers Intercepted 2 | . 2 . . . . Recyclers Shooed 2 | . 1 . . 1 . Parts Field Recycled . | . . . . . . Retrieved Matter . | . . . . . . Parts Self-Destructed 16 | . . . 16 . . Prevented . | . . . . . . Kills | -11 -10 -10 -10 -8 -8 ------- Run | Yrd Mat Min Sub Mat Gar Combat Hostiles Destroyed 71 | . 10 7 13 21 20 Melee 1 | . . . . . 1 Guns 13 | . 6 . . 4 3 Cannons 47 | . 4 7 12 15 9 AOE 8 | . . . . 1 7 Classes Destroyed 14 | . 7 1 2 3 1 Worker 2 | . . 1 . 1 . Builder 3 | . 1 . . 2 . Hauler 2 | . 2 . . . . Recycler 1 | . 1 . . . . Mechanic 2 | . 1 . . 1 . Turret 2 | . . . 2 . . Watcher 2 | . 2 . . . . Swarmer 20 | . 5 3 4 3 5 Grunt 28 | . 5 4 2 9 8 Sentry 8 | . . . . 6 2 Hunter 2 | . . . . 2 . Programmer 5 | . . . . . 5 Heavy 1 | . . . . 1 . Subdweller 7 | . . . 7 . . Best Kill Streak 10 | . 6 4 6 10 3 Combat Bots Only 8 | . 3 3 6 8 3 Max Kills in Single Turn 3 | . 1 1 1 1 3 Gunslinging . | . . . . . . Exploded 3 | . . . . 1 3 Melee 1 | . . . . . 1 Uniques/NPCs Destroyed . | . . . . . . Combat | -11 -10 -10 -10 -8 -8 -------- Run | Yrd Mat Min Sub Mat Gar Hostile Shots Fired 441 | . 48 23 91 179 100 Missed 133 | . 15 6 35 51 26 Damage Taken 4394 | . 324 172 825 1947 1126 Core 779 | . 27 9 186 337 220 Absorbed by Shields 25 | . . . . . 25 Redirected to Shielding 50 | . 4 . . 46 . Core Remaining (%) 55 | 100 . . 11 . . Volleys Fired 231 | . 46 16 49 61 59 Largest 3 | . 2 2 2 3 3 Hottest 158 | . 88 107 107 158 137 Shots Fired 485 | . 87 32 98 154 114 Gun 112 | . 46 1 . 21 44 Cannon 360 | . 41 31 98 133 57 Launcher 13 | . . . . . 13 Special . | . . . . . . Kinetic 293 | . 46 16 49 125 57 Thermal 179 | . 41 16 49 29 44 Explosive 13 | . . . . . 13 Electromagnetic . | . . . . . . Robot Hit Streak 22 | . 6 9 22 8 22 Robot Miss Streak 8 | . 8 2 3 6 3 Penetration Max 1 | . . . . 1 . Secondary Targets . | . . . . . . Shots Hit Robots 274 | . 45 16 65 80 68 Core Hits 131 | . 23 10 22 40 36 Critical Kills 3 | . . . 2 1 . Critical Parts Destroyed . | . . . . . . Critical Strikes 12 | . . 1 3 3 5 Burn 4 | . . . . . 4 Meltdown 3 | . . . 2 1 . Blast 5 | . . 1 1 2 1 Melee Attacks 12 | . . . . . 12 Impact . | . . . . . . Slashing 12 | . . . . . 12 Piercing . | . . . . . . Sneak Attacks . | . . . . . . Combat Hostiles . | . . . . . . Follow-up Attacks . | . . . . . . Damage Inflicted 7091 | . 839 330 1388 2448 2086 Guns 1090 | . 336 . . 278 476 Cannons 5105 | . 503 330 1388 2115 769 Explosions 680 | . . . . 55 625 Melee 216 | . . . . . 216 Ramming . | . . . . . . Kinetic 3957 | . 336 142 666 2044 769 Thermal 2238 | . 503 188 722 349 476 Explosive 680 | . . . . 55 625 Electromagnetic . | . . . . . . Impact . | . . . . . . Slashing 216 | . . . . . 216 Piercing . | . . . . . . Highest Corruption 3 | . . . . . 3 Average Corruption 2 | . . . . . 2 Corruption Purged . | . . . . . . Corruption Blocked . | . . . . . . Effects 3 | . . . . . 3 Matter Fused 1 | . . . . . 1 Heat Flow Errors 1 | . . . . . 1 Data Loss (minor) 1 | . . . . . 1 Overload Shots . | . . . . . . Overflow Damage 151 | . 8 8 29 65 41 Projectiles 115 | . 8 8 29 65 5 Explosions 28 | . . . . . 28 Melee 8 | . . . . . 8 Knockbacks 27 | . . 3 9 10 5 Impact . | . . . . . . Kinetic 27 | . . 3 9 10 5 Secondary . | . . . . . . Self-Inflicted Damage 40 | . . . . . 40 Shots 2 | . . . . . 2 Rammed . | . . . . . . Targets Rammed . | . . . . . . Kicked . | . . . . . . Crushed . | . . . . . . Highest Temperature 405 | . 198 405 38 189 166 Average Temperature 69 | . 52 136 19 56 50 Received Heat Transfer 1356 | . 102 63 309 558 324 Effects 1 | . . 1 . . . Shutdowns 1 | . . 1 . . . Siege Activations . | . . . . . . Robots Corrupted . | . . . . . . Combat Hostiles . | . . . . . . Parts Fried . | . . . . . . Impact Corruptions . | . . . . . . Robots Melted 3 | . . . 2 1 . Combat Hostiles 2 | . . . 1 1 . Parts Melted 4 | . 1 . 1 . 2 Heat Transferred 4366 | . 888 333 1295 592 1258 Parts Sabotaged . | . . . . . . Parts Stolen . | . . . . . . Parts Stripped . | . . . . . . Power Chain Reactions . | . . . . . . Alert | -11 -10 -10 -10 -8 -8 ------- Run | Yrd Mat Min Sub Mat Gar Peak Influence 1253 | . 196 159 . 699 1253 Initial 450 | . . 64 . 254 450 Average 433 | . 70 93 . 527 875 Maximum Alert Level 4 | . . . . 2 4 Low Security (%) 45 | 100 100 100 . . . Level 1 4 | . . . . 22 . Level 2 24 | . . . . 77 23 Level 3 18 | . . . . . 58 Level 4 5 | . . . . . 18 Level 5 . | . . . . . . High Security . | . . . . . . Max Security . | . . . . . . Squads Dispatched 9 | . 1 . . 8 . Investigation 3 | . 1 . . 2 . Extermination . | . . . . . . Reinforcement 2 | . . . . 2 . Assault . | . . . . . . Garrison 4 | . . . . 4 . Intercept . | . . . . . . Searches Triggered . | . . . . . . Construction Impeded . | . . . . . . Haulers Reinforced . | . . . . . . Active Scanning Responses . | . . . . . . Cargo Convoy Interrupts . | . . . . . . Stealth | -11 -10 -10 -10 -8 -8 --------- Run | Yrd Mat Min Sub Mat Gar Distress Signals 5 | . 2 . . 3 . Communications Jammed . | . . . . . . Distress Signals . | . . . . . . Times Spotted 109 | . 15 7 35 26 26 Peak Tracking Total 6 | . 4 3 3 6 4 Tactical Retreats 11 | . 1 . 3 2 5 Traps | -11 -10 -10 -10 -8 -8 ------- Run | Yrd Mat Min Sub Mat Gar Traps Triggered 11 | . 2 . . 1 8 Indirectly . | . . . . . . Trap Hack Attempts . | . . . . . . Triggered . | . . . . . . Disarmed . | . . . . . . Reprogrammed . | . . . . . . Reused . | . . . . . . Traps Extracted . | . . . . . . Installed . | . . . . . . Triggered . | . . . . . . Most Traps Carried 3 | . . . . . 3 Objects Rigged 1 | . . . . 1 . Exploded 1 | . . . . 1 . Machines | -11 -10 -10 -10 -8 -8 ---------- Run | Yrd Mat Min Sub Mat Gar Machines Disabled 12 | . 2 1 2 2 5 Max in Single Turn 1 | . 1 1 1 1 1 Garrison Relay 3 | . . . . . 3 Machines Repaired . | . . . . . . Machines Dismantled . | . . . . . . Machines Sabotaged . | . . . . . . Overloaded Fab Kills . | . . . . . . Hacking | -11 -10 -10 -10 -8 -8 --------- Run | Yrd Mat Min Sub Mat Gar Machines Accessed 11 | . 5 . . 4 2 Terminals 10 | . 5 . . 3 2 Fabricators . | . . . . . . Repair Stations . | . . . . . . Recycling Units . | . . . . . . Scanalyzers . | . . . . . . Garrison Access 1 | . . . . 1 . Total Hacks 27 | . 19 . . 4 4 Successful 9 | . 5 . . 4 . Failed 18 | . 14 . . . 4 Catastrophic 4 | . 1 . . . 3 Database Lockouts . | . . . . . . Manual 12 | . 11 . . 1 . Terminals 26 | . 19 . . 3 4 Fabricators . | . . . . . . Repair Stations . | . . . . . . Recycling Units . | . . . . . . Scanalyzers . | . . . . . . Garrison Access 1 | . . . . 1 . Terminal Hacks 7 | . 5 . . 2 . Record 1 | . . . . 1 . Robot Analysis 1 | . 1 . . . . Prototype ID Bank 2 | . 2 . . . . Branch Access Points 1 | . . . . 1 . Locate Traps 1 | . 1 . . . . Dispatch Records 1 | . 1 . . . . Fabricator Hacks . | . . . . . . Repair Station Hacks . | . . . . . . Recycling Unit Hacks . | . . . . . . Scanalyzer . | . . . . . . Garrison Access Hacks 1 | . . . . 1 . Unlock Access 1 | . . . . 1 . Unauthorized Hacks 1 | . . . . 1 . Terminals 1 | . . . . 1 . Detonate 1 | . . . . 1 . Fabricators . | . . . . . . Repair Stations . | . . . . . . Recycling Units . | . . . . . . Scanalyzers . | . . . . . . Garrison Access . | . . . . . . Data Cores Recovered 1 | . . . . 1 . Used 1 | . . . . 1 . Hacking Detections 7 | . 4 . . 1 2 Full Trace Events 3 | . 2 . . . 1 Feedback Events . | . . . . . . Feedback Blocked . | . . . . . . Robot Schematics Acquired . | . . . . . . Robots Built . | . . . . . . Authchips . | . . . . . . Time . | . . . . . . Total Robot Build Rating . | . . . . . . Part Schematics Acquired . | . . . . . . Parts Built . | . . . . . . Authchips . | . . . . . . Time . | . . . . . . Total Part Build Rating . | . . . . . . Parts Repaired . | . . . . . . Time . | . . . . . . Parts Recycled . | . . . . . . Recycled Matter . | . . . . . . Retrieved Matter . | . . . . . . Retrieved Components . | . . . . . . Parts Scanalyzed . | . . . . . . Part Schematics Acquired . | . . . . . . Parts Damaged . | . . . . . . Bothacking | -11 -10 -10 -10 -8 -8 ------------ Run | Yrd Mat Min Sub Mat Gar Used RIF Installer . | . . . . . . Robots Hacked . | . . . . . . Non-combat . | . . . . . . Combat . | . . . . . . Robot Hacks Applied . | . . . . . . Relay Couplers Released 11 | . . . . . 11 Machine Destruction 11 | . . . . . 11 Fabnet Peak Effective % . | . . . . . . Robots Rewired . | . . . . . . Allies Hacked . | . . . . . . Hacks Repelled . | . . . . . . Allies | -11 -10 -10 -10 -8 -8 -------- Run | Yrd Mat Min Sub Mat Gar Total Allies . | . . . . . . Largest Group . | . . . . . . Highest-Rated Group . | . . . . . . Highest-Rated Ally . | . . . . . . Total Orders . | . . . . . . Ally Attacks . | . . . . . . Total Damage . | . . . . . . Kills . | . . . . . . Allies Corrupted . | . . . . . . Allies Melted . | . . . . . . Intel | -11 -10 -10 -10 -8 -8 ------- Run | Yrd Mat Min Sub Mat Gar Robot Analysis Total 1 | . 1 . . . . Derelict Logs Recovered 4 | . . 2 2 . . Drone Launches . | . . . . . . Drone Recoveries . | . . . . . . Exploration | -11 -10 -10 -10 -8 -8 ------------- Run | Yrd Mat Min Sub Mat Gar Turns Passed 4019 | 64 663 658 999 664 971 Spaces Moved 2321 | 39 353 510 618 342 459 Core 14 | 12 . . . 2 . Treads 223 | 27 81 . . . 115 Legs . | . . . . . . Wheels 2084 | . 272 510 618 340 344 Hover . | . . . . . . Flight . | . . . . . . Fastest Speed 50 | 50 105 105 115 107 107 Average Speed 132 | 126 136 116 132 122 157 Slowest Speed 850 | 160 240 120 145 850 320 Overloaded Moves . | . . . . . . Propulsion Burnouts . | . . . . . . Robots Hopped . | . . . . . . Cave-ins Triggered . | . . . . . . Exploration Rate (%) 52 | 5 75 99 33 37 67 Regions Visited 5 Branch Regions 2 Pre-discovered Areas 3 | . . 1 2 . . Known Exits Taken 1 | . . . . 1 . Unknown Exits Taken 4 | 1 1 1 1 . . Scrap Searched 2 | . . 1 1 . . Spaces Dug 3 | . . . . . 3 Terrain Destroyed 118 | . . 1 . 48 69 Melee 3 | . . . . . 3 Projectile 21 | . . 1 . 19 1 AOE 94 | . . . . 29 65 Terrain Rammed . | . . . . . . Walls Destroyed . | . . . . . . Machines Disabled . | . . . . . . Actions | -11 -10 -10 -10 -8 -8 --------- Run | Yrd Mat Min Sub Mat Gar Total 2784 | 54 447 543 705 446 589 Wait 38 | . 15 2 20 . 1 Move 2316 | 38 352 509 617 341 459 Hop . | . . . . . . Pick Up 68 | 10 20 8 6 16 8 Fast Attach 3 | . . . 1 2 . Attach 50 | 6 9 4 4 20 7 Detach 3 | . . 1 . 2 . Swap 13 | . 3 3 3 2 2 Drop 9 | . 2 . 5 2 . Fire 231 | . 46 16 49 61 59 Melee 12 | . . . . . 12 Ram . | . . . . . . Kick . | . . . . . . Crush . | . . . . . . Escape Stasis 41 | . . . . . 41 Rewire . | . . . . . . Trap . | . . . . . . Miscellaneous . | . . . . . . Route ------- -11/Scrapyard -10/Materials (discovered 3 exits: [*Mat x2] / [*Min]) -10/Mines (discovered 3 exits: [*Mat x2] / [*Sub]) -10/Subcaves (discovered 2 exits: *Mat / [*Rec]) -8/Materials (discovered 4 exits: [*Fac] / *Sto x2 / Gar) -8/Garrison (discovered 2 exits: [*Mat x2]) History --------- Turn | Location | Event 8 | -11/Scrapyard | Discovered new exit (range 14) 65 | -11/Scrapyard | Entered Materials 286 | -10/Materials | Discovered new exit (range 7) 316 | -10/Materials | Build established: Mutant 559 | -10/Materials | Discovered new exit (range 16) 665 | -10/Materials | Derelicts attacked the area 713 | -10/Materials | Discovered new exit (range 12) 728 | -10/Materials | Entered Mines 736 | -10/Mines | Joined a pair of Derelicts in attacking an 0b10 outpost 865 | -10/Mines | Found a damaged Exp. Sensor Array with a note attached 867 | -10/Mines | Found Prototype Device 868 | -10/Mines | Identified Exp. Sensor Array 921 | -10/Mines | Learned Materials emergency access door positions 951 | -10/Mines | Found a hidden stash of uninstalled traps 1057 | -10/Mines | Discovered new exit (range 16) 1115 | -10/Mines | Discovered new exit (range 7) 1321 | -10/Mines | A weapon hastily lodged in a ceiling crevice suddenly fell to the ground 1381 | -10/Mines | Discovered new exit (range 5) 1386 | -10/Mines | Entered Subcaves 1432 | -10/Subcaves | Learned location of Zion (-6) 1432 | -10/Subcaves | Met a Zionite searching for "candidates" 1511 | -10/Subcaves | Discovered new exit (range 16) 1644 | -10/Subcaves | Core integrity fell below 50% 1754 | -10/Subcaves | Shifting Twisted Machinery released Flamer 1756 | -10/Subcaves | Shifting Twisted Machinery released Riot Gun 2067 | -10/Subcaves | Learned location of Recycling (-8) 2131 | -10/Subcaves | Discovered new exit (range 11) 2209 | -10/Subcaves | Learned 2 Materials zone layouts 2259 | -10/Subcaves | Core integrity fell below 20% 2295 | -10/Subcaves | A swath of the cavern ceiling suddenly collapsed 2385 | -10/Subcaves | Entered Materials 2385 | -8/Materials | Evolved 4 slots: Utility x3, Weapon x1 2396 | -8/Materials | Discovered new exit (range 16) 2454 | -8/Materials | Identified exit to Garrison 2523 | -8/Materials | Garrison activated, responded to threat 2606 | -8/Materials | Lost 3 parts (2n1w) 2686 | -8/Materials | Destroyed 8 combat bots 2686 | -8/Materials | Lost 5 parts (1p1n3w) 2764 | -8/Materials | Met 7R-MNS 2836 | -8/Materials | Discovered new exit (range 16) 2845 | -8/Materials | Identified exit to Storage 2982 | -8/Materials | Garrison activated, responded to threat 3006 | -8/Materials | Core integrity fell below 50% 3049 | -8/Materials | Entered Garrison 3051 | -8/Garrison | Lost 4 parts (1p1u2w) 3131 | -8/Garrison | Triggered checkpoint 3161 | -8/Garrison | Garrison Relay disabled 3371 | -8/Garrison | Discovered new exit (range 15) 3401 | -8/Garrison | Garrison Relay disabled 3492 | -8/Garrison | Build established: Scavenger-Gunner 3590 | -8/Garrison | Core integrity fell below 20% 3649 | -8/Garrison | Discovered new exit (range 12) 3796 | -8/Garrison | Garrison Relay disabled 3807 | -8/Garrison | Triggered checkpoint 3995 | -8/Garrison | Triggered checkpoint 4020 | -8/Garrison | Destroyed by Y-45 Defender with Heavy Assault Rifle Last Messages --------------- An alarm sounds. Connecting with Garrison Terminal... ALERT: Suspicious activity at Terminal G001. Transmitting hostile system tracking data. Grenade Launcher destroyed. P-60 Hacker suffers critical hit (Burn). P-60 Hacker destroyed. P-60 Hacker knocked back. Pulse Rifle destroyed. P-60 Hacker knocked back. P-60 Hacker destroyed. Acquired 5 matter. Acquired 24 matter. Acquired Imp. Heat Sink. Acquired Remote Datajack. Destroyed Heat Sink. Y-45 Defender suffers critical hit (Burn). Beam Rifle melted. Lgt. Treads melted. Y-45 Defender destroyed. Map ----- +----------------------------------------------------+ | ??????????????????????????????????????????????# | | ???#####??????????????????????????????????????# | | ???# #??????????????????????????????????????# | | ???# < #############??????????????????????????# | | ???# #????????????????????####### | | ???# #????????????????????# " | | ???############## #????????????????????# ##### | | ????????????????# #????????????????????# #???# | | ????????????????# #????????????????????# #???# | | ################# ####?????????????????# #???# | | # " # #?????????????????# #???# | | # ############ #?????????????????# #???# | | ! #???????# # #% # ########??????????# #???# | | ! #???????# = ^^ #??????????# #???# | | ! #????#### # % #??????????# #???# | | #=#????# # ### %# ##### #??????????# #???# | | # ####### #??# ## #???# #??????????# #???# | | #[ = ##?# ## #???# #??????????# #???# | | ####* # # #?# ## ???# #???????#### ##### | | ???# # # #?# ## ##??# #???????# " | | ???##+##### ###?# ## #???# #######?# ######## | | ????#%#???# #???# ## #???# ## #?# ###????# | | ????#%#???# #???# ## #??## ## ###;# ###### | | #####[#####=##### ##+#### %[ | | %[! [ ; == | | "################ @% | | ##??????????????##;###;#;#%Y ## ## ########## | | ?????????????????##??##### ## ## ###??????? | | ?????????????????????????" [ #??????? | | ?????????????????????????" #??????? | | ?????????????????????????" %% #??????? | | ?????????????????????????" #??????? | | ?????????????????????????# ## ## ###??????? | | ????????????????????????## ## ## ########## | | ??????????????????????? [ # | | ??????????????????????? %*%* " | | ????????????????????????## ####"## # | | ?????????????????????????## ##""""## ##??# ## # | | ??????????????????????????? ???????# #???# ## # | | ????????????????????????????????????# #???# ## # | | ????????????????????????????????????# ##### ## # | | ????????????????????????????????????# " ## # | | ????????????????????????????????????# ##### # # | | ????????????????????????????????????# #???#### # | | ????????????????????????????????????# ######## # | | ????????????????????????????????????# # | | ????????????????????????????????????# | | ????????????????????????????????????########### # | | ??????????????????????????????????????????????# # | | ??????????????????????????????????????????????# # | +----------------------------------------------------+ Best States ------------- Heat Dissipation 67 Energy Generation 15 Energy Capacity 265 Matter Stores 340 Matter Capacity 350 Sight Range 16 Robot Scan Range 20 Terrain Scan Density 10 Armor Coverage 150 Core Shielding 20 Evasion (%) 50 Recoil Reduction 2 Item Schematics ----------------- None Robot Schematics ------------------ None Fabricated ------------ Nothing Alien Tech Used ----------------- None Achievements -------------- None Challenges ------------ None Game ------ Seed ColdRocketReconfigurator Manual? 0 Play Time 00:32:54 Cumulative 115.0 hours Start 2024.05.22 @ 04:51:46 End 2024.05.22 @ 06:07:39 Sessions 3 Manual Loads 0 Difficulty Rogue Special Mode None Game No. 117 Rogue 108 Adventurer 9 Explorer 0 Win Type - Total 0 Types 0/0/0/0/0/0/0/0/0 Lore% 56 Gallery% 64 Achievement% 47 Wizard Run 0 Options --------- Layout 1 ASCII 0 Keyboard 0 Movement Numpad Keybinds 0 Fullscreen 1 Font 24/Smallcaps Map View 50x35 Zoom Use 0% Tactical HUD 0 Map Filters NONE Filters NONE Steam 1 RUN: 4fdb4a0a-4960-4f19-ace8-863c6f5c4bc1